Workbook

Sheet Resumo
A1: TOTAL DOS CUSTOS DIRETOS | N1: =FSUP!N33 -> 0
A2: TOTAL DO CUSTOS INDIRETOS | N2: =FSUP!N37 -> 0
A3: TOTAL DA PROPOSTA | N3: =FSUP!N38 -> 0

Sheet FSUP
A3: PROPOSTA FINANCEIRA SUP. E APOIO A FISC. DE OBRA | N3: CODIGO:
N4: FSUP
A5: NOME DA CONSULTORA:
A7: PROJETO: | E7: OBJETO: | N7: EDITAL:
A8: Meio Ambiente | E8: Serviços Especializados de Assessoria Ambiental
A9: SERVIÇOS PAGOS A PREÇO UNITÁRIO
A10: MOBILIZAÇÃO/DESMOBILIZAÇÃO
A11: A1 - MOBILIZAÇÃO (FSUP-IV) | N11: ='FSUP-IV Mobiliz Desmob'!H41 -> 0
A12: A2 - DESMOBILIZAÇÃO (FSUP-IV) | N12: ='FSUP-IV Mobiliz Desmob'!L41 -> 0
A13: A - TOTAL DOS CUSTOS COM MOBILIZAÇÃO E DESMOBILIZAÇÃO | N13: =N11+N12 -> 0
A14: MÃO-DE-OBRA
A15: B1 - TOTAL DE SALÁRIO DA EQUIPE COM VÍNCULO (FSUP-I) | N15: ='FSUP-I EQUIPE TÉCNICA'!L47 -> 0
A16: B2 - TOTAL DE SALÁRIO DO AUTÔNOMO (FSUP-I) | N16: ='FSUP-I EQUIPE TÉCNICA'!M47 -> 0
A17: B - TOTAL DOS CUSTOS DE SALÁRIOS DA EQUIPE | N17: =SUM(N15:O16) -> 0
A18: =CONCATENATE("C1 - ENCARGOS SOCIAiS DE B1 = ", 100*'FSUP-VII Det. Enc. Sociais'!F49,"%DO B1") -> C1 - ENCARGOS SOCIAiS DE B1 = 70,08%DO B1 | N18: =ROUND((N15*'FSUP-VII Det. Enc. Sociais'!F49),2) -> 0
A19: C2 - ENCARGOS SOCIAIS DE B2 (20% DO B2) | N19: =ROUND(N16*0.2,2) -> 0
A20: C - TOTAL DOS CUSTOS COM ENCARGOS SOCIAIS | N20: =SUM(N18:O19) -> 0
A21: D1 - CUSTO TOTAL DAS PASSAGENS AÉREAS E TERRESTRES (FSUP-II) | N21: ='FSUP-II VIAGENS'!H31 -> 0
A22: D2 - CUSTO TOTAL DAS DIÁRIAS (FSUP-II) | N22: ='FSUP-II VIAGENS'!M31 -> 0
A23: D - TOTAL DO CUSTO COM VIAGENS | N23: =SUM(N21:O22) -> 0
A25: MANUTENÇÃO OPERACIONAL
A26: 1 - CUSTO DOS VEÍCULOS (FSUP-III, ITEM 1) | N26: ='FSUP-III Manutenção Operac'!I15 -> 0
A27: 2 - CUSTO DA MANUTENÇÃO E ADMINISTRAÇÃO DO ESCRITÓRIO DE APOIO (FSUP-III, ITEM 2) | N27: ='FSUP-III Manutenção Operac'!I25 -> 0
A28: 3 - EQUIPAMENTO (FSUP-III, ITEM 3) | N28: ='FSUP-III Manutenção Operac'!I31 -> 0
A29: 4 - SERVIÇOS GRÁFICOS/COMPUTAÇÃO (FSUP-III, ITEM 4) | N29: ='FSUP-III Manutenção Operac'!I37 -> 0
A30: 5 - MONITORAMENTO DE QUALIDADE DE ÁGUA (FSUP-III, ITEM 5) | N30: ='FSUP-III Manutenção Operac'!I40 -> 0
A32: E - TOTAL DOS PREÇOS COM MANUTENÇÃO OPERACIONAL | N32: =SUM(N26:O31) -> 0
A33: TOTAL DOS CUSTOS DIRETOS | N33: =SUM(N13+N17+N20+N23+N32) -> 0
A34: =CONCATENATE("F - CUSTOS DE ADMINISTRAÇÃO = ",'FSUP-V Det. custos Adm.'!F38,"% DO B") -> F - CUSTOS DE ADMINISTRAÇÃO = 8% DO B | N34: =ROUND(N17*'FSUP-V Det. custos Adm.'!$F$38/100,2) -> 0
A35: G - REMUNERAÇÃO DA EMPRESA (LUCRO) = (10% DE A + B + C + D + E + F) | N35: =ROUND(0.1*(N13+N17+N20+N23+N32+N34),2) -> 0
A36: =CONCATENATE("H - DESPESAS FISCAIS = (",'FSUP-VI Det. Desp Fiscais'!G29,"% DE (A + B + C + D + E + F + G)") -> H - DESPESAS FISCAIS = (13,31% DE (A + B + C + D + E + F + G) | N36: =ROUND('FSUP-VI Det. Desp Fiscais'!$G$29/100*(N13+N17+N20+N23+N32+N34+N35),2) -> 0
A37: TOTAL DO CUSTOS INDIRETOS | N37: =SUM(N34:O36) -> 0
A38: TOTAL DA PROPOSTA | N38: =N33+N37 -> 0
A39: NOME DO INFORMANTE: | J39: QUALIFICAÇÃO:
A41: ASSINATURA: | N41: DATA:
A43: OBSERVAÇÃO:

Sheet FSUP-I EQUIPE TÉCNICA
A3: SALÁRIOS DA EQUIPE TÉCNICA | L3: CODIGO:
L4: FSUP- I
A5: NOME DA CONSULTORA:
A7: PROJETO: | C7: OBJETO: | L7: EDITAL:
A8: Meio Ambiente | C8: =FSUP!E8 -> Serviços Especializados de Assessoria Ambiental
A9: EQUIPE TÉCNICA | E9: COMPOSIÇÃO DOS SALÁRIOS POR PROFISSÃO/FUNÇÃO | L9: CUSTOS
E10: SALÁRIO | F10: ENC. | G10: CUSTO | H10: R. EMP. | I10: DESP. | J10: SALÁRIO | K10: HORA | L10: SALÁRIO | M10: SALÁRIO
A11: PROFISSÃO/FUNÇÃO | C11: S | D11: QTD | E11: CATEG. | F11: SOCIAIS | G11: ADM. | H11: LUCRO | I11: FISCAIS | J11: MENSAL | K11: TÉCNICA | L11: B1 | M11: B2
A13: NÍVEL SUPERIOR
A14: Engenheiro consultor especial (SICRO P8060) | C14: C | D14: 3 | F14: =E14*0.2 -> 0 | G14: =E14*8% -> 0 | H14: =(E14+F14+G14)*10% -> 0 | I14: =(E14+F14+G14+H14)*'FSUP-VI Det. Desp Fiscais'!$G$29% -> 0 | J14: =SUM(E14:I14) -> 0 | K14: =ROUND(J14/176,2) -> 0 | M14: =ROUND(D14*E14,2) -> 0
A15: Coordenador ambiental (SICRO P8044) | C15: P | D15: 36 | F15: =E15*0.2 -> 0 | G15: 0 | H15: 0 | I15: =(E15+F15+G15+H15)*'FSUP-VI Det. Desp Fiscais'!$G$29% -> 0 | J15: 0 | K15: 0 | M15: =ROUND(D15*E15,2) -> 0
A16: Engenheiro Auxiliar (Ambiental, Florestal, Agrônomo, Agrícola, etc) (SICRO P9946) | C16: P | D16: 243 | F16: =E16*'FSUP-VII Det. Enc. Sociais'!$F$49 -> 0 | G16: 0 | H16: 0 | I16: =(E16+F16+G16+H16)*'FSUP-VI Det. Desp Fiscais'!$G$29% -> 0 | J16: 0 | K16: 0 | L16: =ROUND(D16*E16,2) -> 0
A17: Geólogo (SICRO P8080) | C17: P | D17: 51 | F17: =E17*'FSUP-VII Det. Enc. Sociais'!$F$49 -> 0 | G17: 0 | H17: 0 | I17: =(E17+F17+G17+H17)*'FSUP-VI Det. Desp Fiscais'!$G$29% -> 0 | J17: 0 | K17: 0 | L17: =ROUND(D17*E17,2) -> 0
A18: Biólogo Senior (SICRO P8034) | C18: P | D18: 186 | F18: =E18*'FSUP-VII Det. Enc. Sociais'!$F$49 -> 0 | G18: 0 | H18: 0 | I18: =(E18+F18+G18+H18)*'FSUP-VI Det. Desp Fiscais'!$G$29% -> 0 | J18: 0 | K18: 0 | L18: 0
A19: Comunição Socioambiental / Jornalista (SICRO P8094) | C19: P | D19: 54 | F19: =E19*'FSUP-VII Det. Enc. Sociais'!$F$49 -> 0 | G19: 0 | H19: 0 | I19: =(E19+F19+G19+H19)*'FSUP-VI Det. Desp Fiscais'!$G$29% -> 0 | J19: 0 | K19: 0 | L19: 0
A20: Pedagogo sênior (SICRO P8131) | C20: P | D20: 57 | F20: =E20*'FSUP-VII Det. Enc. Sociais'!$F$49 -> 0 | G20: 0 | H20: 0 | I20: =(E20+F20+G20+H20)*'FSUP-VI Det. Desp Fiscais'!$G$29% -> 0 | J20: 0 | K20: 0 | L20: 0
A21: Paleontólogo/Arqueólogo/Antropólogo sênior(SICRO P8191) | C21: P | D21: 57 | F21: =E21*'FSUP-VII Det. Enc. Sociais'!$F$49 -> 0 | G21: 0 | H21: 0 | I21: =(E21+F21+G21+H21)*'FSUP-VI Det. Desp Fiscais'!$G$29% -> 0 | J21: 0 | K21: 0 | L21: 0
A22: Economista / Sociólogo pleno (SICRO P8046) | C22: P | D22: 30 | F22: =E22*'FSUP-VII Det. Enc. Sociais'!$F$49 -> 0 | G22: 0 | H22: 0 | I22: =(E22+F22+G22+H22)*'FSUP-VI Det. Desp Fiscais'!$G$29% -> 0 | J22: 0 | K22: 0 | L22: 0
A23: Assistente Social pleno (SICRO P8020) | C23: P | D23: 12 | F23: =E23*'FSUP-VII Det. Enc. Sociais'!$F$49 -> 0 | G23: 0 | H23: 0 | I23: =(E23+F23+G23+H23)*'FSUP-VI Det. Desp Fiscais'!$G$29% -> 0 | J23: 0 | K23: 0 | L23: 0
A26: NÍVEL TÉCNICO
A27: Técnico Ambiental / Geoprocessamento (SICRO P8143) | C27: T | D27: 175 | F27: =E27*'FSUP-VII Det. Enc. Sociais'!F49 -> 0 | G27: =E27*8% -> 0 | H27: =(E27+F27+G27)*10% -> 0 | I27: =(E27+F27+G27+H27)*'FSUP-VI Det. Desp Fiscais'!G29% -> 0 | J27: =SUM(E27:I27) -> 0 | K27: =ROUND(J27/176,2) -> 0 | L27: =ROUND(D27*E27,2) -> 0
A40: NÍVEL AUXILIAR
A42: Auxiliar ( SICRO P8025) | C42: A | D42: 207 | F42: =E42*'FSUP-VII Det. Enc. Sociais'!F49 -> 0 | G42: =E42*8% -> 0 | H42: =(E42+F42+G42)*10% -> 0 | I42: =(E42+F42+G42+H42)*'FSUP-VI Det. Desp Fiscais'!G29% -> 0 | J42: =SUM(E42:I42) -> 0 | K42: =ROUND(J42/176,2) -> 0 | L42: =ROUND(D42*E42,2) -> 0
A44: APOIO
A47: TOTAIS DOS SALÁRIOS DA EQUIPE | L47: =ROUND(SUM(L13:L46),2) -> 0 | M47: =SUM(M13:M46) -> 0
A48: NOME DO INFORMANTE: | H48: QUALIFICAÇÃO:
A50: ASSINATURA: | L50: DATA:
A52: OBSERVAÇÃO:
A53: 1 - UTILIZAR OS PARÂMETROS DE CLASSIFICAÇÃO INDICADOS NO TSUP- II EQUIPE TÉCNICA
A54: 2- UTILIZAR OS SÍMBOLOS INDICADOS NO TSUP-II EQUIPE TÉCNICA
A55: 3- INDICAR A QUANTIDADE DE HOMENS POR CATEGORIA.
A56: 4- INIDCAR O SALÁRIO BASE DA CATEGORIA
A57: =CONCATENATE("5 - ENC. SOCIAIS, APLICAR NO MÁXIMO 20% PARA AUTÔNOMOS E ",100*'FSUP-VII Det. Enc. Sociais'!F49,"% PARA EMPREG. COM VÍNCULO DETALHAR NO FSUP-VII") -> 5 - ENC. SOCIAIS, APLICAR NO MÁXIMO 20% PARA AUTÔNOMOS E 70,08% PARA EMPREG. COM VÍNCULO DETALHAR NO FSUP-VII
A58: 6- CUSTO DE ADMINISTRAÇÃO, APLICAR NO MÁXIMO 25% SOBRE O SALÁRIO BASE DA CATEGORIA
A59: 7 - REMUN. DA EMPRESA (LUCRO), APLICAR NO MÁXIMO 10% SOBRE O SALÁRIO DA CATEG + ENCARGOS SOCIAIS + CUSTO DE ADM.
A60: 8 - DESP. FISCAIS, APLICAR O DF' CALCULADO NO FSUP-VI SOBRE O SALÁRIO DA CATEG. + ENC. SOCIAIS + CUSTO DE ADM. + LUCRO
A61: 9- PREÇO DO HOMEM MÊS POR CATEGORIA = SOMATÓRIO DOS ITENS (4) + (5) + (6) + (7) +(8)
A62: 10- PREÇO DA HORA TÉCNICA = (9) / 176
A63: 11 - SALÁRIOS DE B1 = SALARIO DOS EMPREGADOS COM VÍNCULO X QTD HOMEM MÊS. EXPORTAR O TOTAL PARA LINHA B1 DO FSUP
A64: 12 - SALÁRIO DE B2 = SALÁRIO DO AUTÔNOMO X QTD HOMEM X MÊS. EXPORTAR O TOTAL PARA A LINHA B2 DO FSUP
A65: 13 - A DEPENDER DA TIPOLOGIA DO ESTUDO, A FORMAÇÃO DO PROFISSIONAL MOBILIZADO PODE SER SUBSTITUÍDO POR OUTRO DE SALÁRIO EQUIVALENTE, COM A AUTORIZAÇÃO DO FISCAL
A66: 14 - O PROFISSIONAL DE SERVIÇOS DE CAMPO DEVERÁ TER OS EQUIPAMENTOS INERENTES À SUA ESPECIALIDADE. EX.: BIÓLOGO COM ARMADILHAS DE FAUNA
A67: 15 - É DISCRICIONÁRIO APRESENTAÇÃO DE PROPOSTA COM PROFISSIONAIS COM OU SEM ENCARGOS SOCIAIS
A68: 16 - O QUANTITATIVO NÃO PODE SER ALTERADO TENDO EM VISTA A BASE DO MEMORIAL DE CÁLCULO AO LONGO DA VIGÊNCIA CONTRATUAL

Sheet FSUP-II VIAGENS
A3: VIAGENS DA EQUIPE TÉCNICA | N3: CODIGO:
N4: FSUP-II
A5: NOME DA CONSULTORA:
A7: PROJETO: | C7: OBJETO:
A8: Meio Ambiente | C8: =FSUP!E8 -> Serviços Especializados de Assessoria Ambiental
A9: SIMBOLO | B9: ROTEIRO (ida e volta) | E9: PASSAGENS | L9: DIÁRIAS
E10: A/T | F10: QTD | G10: CUSTO | I10: PREÇO | K10: QTD | L10: CUSTO | N10: PREÇO
G11: UNITÁRIO | H11: TOTAL | I11: UNITÁRIO | J11: TOTAL | L11: UNITÁRIO | M11: TOTAL | N11: UNITÁRIO | O11: TOTAL
A13: C/P0/P1/P2/T1 | B13: Sede/Diversos/Sede | E13: A | F13: 211 | H13: =ROUND(G13*F13,2) -> 0 | I13: =((1+0.1)*(1+'FSUP-VI Det. Desp Fiscais'!$G$29%)*G13) -> 0 | J13: =ROUND(F13*I13,2) -> 0 | K13: 1804 | M13: =ROUND(L13*K13,2) -> 0 | N13: =((1+0.1)*(1+'FSUP-VI Det. Desp Fiscais'!$G$29%)*L13) -> 0 | O13: =ROUND(K13*N13,2) -> 0
A31: TOTAIS DE CUSTOS E DE PREÇOS DE PASSAGENS E DIÁRIAS | H31: =SUM(H12:H30) -> 0 | J31: =SUM(J12:J30) -> 0 | M31: =SUM(M12:M30) -> 0 | O31: =SUM(O12:O30) -> 0
A32: NOME DO INFORMANTE: | G32: QUALIFICAÇÃO:
A34: ASSINATURA: | M34: DATA:
A36: OBSERVAÇÕES:
A37: 1 - VIAGENS DURANTE A EXECUÇÃO DOS SERVIÇOS, INCLUÍNDO REUNIÕES NA ADM. CENTRAL DA CODEVASF
A38: 2 - NÂO INCLUIR VIAGENS COM MOBILIZAÇÃO/DESMOBILIZAÇÃO DA EQUIPE QUE SERÃO CALCULADOS NO PSUP-IV
A39: 3 - AS DIÁRIAS COBREM DESPESAS COM TAXI, ALIMENTAÇÃO E HOSPEDAGEM
A40: 4 - INDICAR (A) PARA AS PASSAGENS AÉREAS
A41: 5 - CUSTO DO ITEM SEM LUCRO E SEM DESPESAS FISCAIS
A42: 6 - EXPORTAR O TOTAL DO CUSTO COM PASSAGENS E DIÁRIAS, RESPECTIVAMENTE, LINHAS "D1" E "D2" DO PSUP
A43: =CONCATENATE(";6 - PREÇO = CUSTO + LUCRO+ DESPESAS FISCAIS E SERÁ CALCULADO COM A SEGUINTE FORMULA:CUSTO*(1+0,1)*(1+",'FSUP-VI Det. Desp Fiscais'!G29,"%)") -> ;6 - PREÇO = CUSTO + LUCRO+ DESPESAS FISCAIS E SERÁ CALCULADO COM A SEGUINTE FORMULA:CUSTO*(1+0,1)*(1+13,31%)
A44: 7 - OS PREÇOS UNITÁRIOS SERÃO UTILIZADOS PARA FINS DE FATURARAMENTO
A45: 8 - AS PASSAGENS AÉREAS POSSUEM VALOR UNITÁRIO MÉDIO ENTRE OS TRECHOS BSB x SSA / BSB x BH / BSB x REC / BSB x THE

Sheet FSUP-III Manutenção Operac
A3: MANUTENÇÃO OPERACIONAL | J3: CODIGO:
J4: FSUP-III
A5: NOME DA CONSULTORA:
A7: PROJETO: | C7: OBJETO: | J7: EDITAL:
A8: Meio Ambiente | C8: =FSUP!E8 -> Serviços Especializados de Assessoria Ambiental
A9: DISCRIMINAÇÃO | F9: UND | G9: QTD | H9: CUSTOS 2 | J9: PREÇOS 3
H10: UNT | I10: TOTAL | J10: UNT | K10: TOTAL
A11: 1 VEÍCULOS
A12: 1.1 Aluguel de veículos 4x4 - Tipo Caminhonete (Cabine Dupla) (FGV IBRE) | F12: mês | G12: 183 | I12: =ROUND(G12*H12,2) -> 0 | J12: =((1+0.1)*(1+'FSUP-VI Det. Desp Fiscais'!$G$29/100)*H12) -> 0 | K12: =ROUND(G12*J12,2) -> 0
A13: 1.2 Aluguel de veículo leve (FGV IBRE) | F13: mês | G13: 102 | I13: =ROUND(G13*H13,2) -> 0 | J13: =((1+0.1)*(1+'FSUP-VI Det. Desp Fiscais'!$G$29/100)*H13) -> 0 | K13: =ROUND(G13*J13,2) -> 0
A14: 1.2 Barco | F14: mês | G14: 1 | I14: =ROUND(G14*H14,2) -> 0 | J14: =((1+0.1)*(1+'FSUP-VI Det. Desp Fiscais'!$G$29/100)*H14) -> 0 | K14: =ROUND(G14*J14,2) -> 0
A15: Total dos custos e dos preços dos veículos | I15: =SUM(I12:I14) -> 0 | K15: =SUM(K12:K14) -> 0
A17: 2 MANUTENÇÃO E ADMINISTRAÇÃO DO ESCRITÓRIO DE APOIO (BRASÍLIA/DF)
A18: 2.1 Aluguel de escritório com mobiliário (Consultoria SICRO-Esc.1750,92+Mob.753,04) | F18: mês | G18: 36 | I18: =ROUND(G18*H18,2) -> 0 | J18: =((1+0.1)*(1+'FSUP-VI Det. Desp Fiscais'!$G$29/100)*H18) -> 0 | K18: =ROUND(G18*J18,2) -> 0
A19: 2.2 Telefone (10557/ORSE) | F19: mês | G19: 36 | I19: =ROUND(G19*H19,2) -> 0 | J19: =((1+0.1)*(1+'FSUP-VI Det. Desp Fiscais'!$G$29/100)*H19) -> 0 | K19: =ROUND(G19*J19,2) -> 0
A20: 2.3 Energia elétrica | F20: mês | G20: 36 | I20: 0 | J20: =((1+0.1)*(1+'FSUP-VI Det. Desp Fiscais'!$G$29/100)*H20) -> 0 | K20: 0
A21: 2.4 Água e esgoto/ m³ (AGETOP-Agua/2755-Esgoto/2759) | F21: mês | G21: 36 | I21: 0 | J21: =((1+0.1)*(1+'FSUP-VI Det. Desp Fiscais'!$G$29/100)*H21) -> 0 | K21: 0
A22: 2.5 Material de limpeza (10563/ORSE) | F22: mês | G22: 36 | I22: 0 | J22: =((1+0.1)*(1+'FSUP-VI Det. Desp Fiscais'!$G$29/100)*H22) -> 0 | K22: 0
A23: 2.6 Internet | F23: mês | G23: 36 | I23: 0 | J23: =((1+0.1)*(1+'FSUP-VI Det. Desp Fiscais'!$G$29/100)*H23) -> 0 | K23: 0
A24: 2.7 Material de escritório (10562/ORSE) | F24: mês | G24: 36 | I24: 0 | J24: =((1+0.1)*(1+'FSUP-VI Det. Desp Fiscais'!$G$29/100)*H24) -> 0 | K24: 0
A25: Total dos custos e dos preços da manut. e adm. do escrit. de apoio em Brasília/DF | I25: =SUM(I18:I24) -> 0 | K25: =SUM(K18:K24) -> 0
A26: 3 EQUIPAMENTOS
A27: 3.1Notebook (P0, P1, P2 e T1) - (Core i7, 8Gb RAM, 1Tb) | F27: mês | G27: 904 | I27: =ROUND(G27*H27,2) -> 0 | J27: =((1+0.1)*(1+'FSUP-VI Det. Desp Fiscais'!$G$29/100)*H27) -> 0 | K27: =ROUND(G27*J27,2) -> 0
A28: 3.2 GPS (Resolução Nativa de 176 x 220) | F28: mês | G28: 271 | I28: =ROUND(G28*H28,2) -> 0 | J28: =((1+0.1)*(1+'FSUP-VI Det. Desp Fiscais'!$G$29/100)*H28) -> 0 | K28: =ROUND(G28*J28,2) -> 0
A29: 3.3 Serviços de aerolevantamento (incluso profissionais, logística de equipamentos e veículos), através de DRONE, com GSD de 10cm, geração de ortofoto e modelo digital de terreno (MDT) com resolução mínima de 50cm. | F29: hectare | G29: 5000 | I29: =ROUND(G29*H29,2) -> 0 | J29: =((1+0.1)*(1+'FSUP-VI Det. Desp Fiscais'!$G$29/100)*H29) -> 0 | K29: =ROUND(G29*J29,2) -> 0
A30: 3.4 Máquina Fotográfica 24MP, Full HD, 28Gb | F30: mês | G30: 334 | I30: =ROUND(G30*H30,2) -> 0 | J30: =((1+0.1)*(1+'FSUP-VI Det. Desp Fiscais'!$G$29/100)*H30) -> 0 | K30: =ROUND(G30*J30,2) -> 0
A31: Total dos custos e dos preços dos equip. e materiais de apoio | I31: =SUM(I27:I30) -> 0 | K31: =SUM(K27:K30) -> 0
A32: 4 SERVIÇOS GRÁFICOS
A33: 4.1 Relatórios do Contrato (média 50 folhas) | F33: unid. | G33: 50 | I33: =ROUND(G33*H33,2) -> 0 | J33: =((1+0.1)*(1+'FSUP-VI Det. Desp Fiscais'!$G$29/100)*H33) -> 0 | K33: =ROUND(G33*J33,2) -> 0
A34: 4.2 Impressão de Material de Divulgação (Folders - formato: a) aberto 15,0 x 59,5cm; b) fechado 15,0 x 15,0cm - em papel Couche Liso) | F34: unid. | G34: 720 | I34: =ROUND(G34*H34,2) -> 0 | J34: =((1+0.1)*(1+'FSUP-VI Det. Desp Fiscais'!$G$29/100)*H34) -> 0 | K34: =ROUND(G34*J34,2) -> 0
A35: 4.3 Confecção de Faixas/Banners (80cm x 120 cm) | F35: unid. | G35: 100 | I35: =ROUND(G35*H35,2) -> 0 | J35: =((1+0.1)*(1+'FSUP-VI Det. Desp Fiscais'!$G$29/100)*H35) -> 0 | K35: =ROUND(G35*J35,2) -> 0
A36: 4.4 Impressão de Cartilhas/Apostilas - média de 30 páginas | F36: unid. | G36: 1000 | I36: =ROUND(G36*H36,2) -> 0 | J36: =((1+0.1)*(1+'FSUP-VI Det. Desp Fiscais'!$G$29/100)*H36) -> 0 | K36: =ROUND(G36*J36,2) -> 0
A37: Total dos custos e dos preços dos serv. Gráficos | I37: =SUM(I33:I36) -> 0 | K37: =SUM(K33:K36) -> 0
A38: 5. MONITORAMENTO DE QUALIDADE DE ÁGUA
A39: 5.1 Análises químicas laboratoriais em amostra de efluente, conforme CONAMA 357 de 2005 (Água Doce - Classe II) | F39: unid | G39: 12 | I39: =ROUND(G39*H39,2) -> 0 | J39: =((1+0.1)*(1+'FSUP-VI Det. Desp Fiscais'!$G$29/100)*H39) -> 0 | K39: =ROUND(G39*J39,2) -> 0
A40: Total dos custos do monitoramento de água | I40: =SUM(I39:I39) -> 0 | K40: =SUM(K39:K39) -> 0
A42: NOME DO INFORMANTE: | G42: QUALIFICAÇÃO:
A44: ASSINATURA: | H44: DATA:
A46: OBSERVAÇÃO:
A47: 1. Aluguel de veículos inclui combustível e manutenção até o limite de 3000km/mês / Aluguel de barco inclui combustível e manutenção e piloto habilitado
A48: 2. Custo do item sem lucro e despesas fiscais
A49: =CONCATENATE("3. Preço = custo + lucro + despesas fiscais. Para calcular o preço aplica-se a seguinte fórmula: custo*(1+0,1)*(1+",'FSUP-VI Det. Desp Fiscais'!G29,"%)") -> 3. Preço = custo + lucro + despesas fiscais. Para calcular o preço aplica-se a seguinte fórmula: custo*(1+0,1)*(1+13,31%)
A50: 4. Exportar " total custo" para a linha corresponde no FSUP. Os preços serão aplicados para fins de faturamento
A51: 5. Equipamentos e materiais de campo pessoais ou complementares para garantir a qualidade dos serviços de campo estão previstos na hora do profissional.
A52: 6. O Drone possui especificação mínima: Modelo DJI Mavic 2 PRO com 4 baterias extras, tem por finalidade, sempre que definido em OS, fazer registros da área do PHJ. As imagens devem estar georreferenciadas, os produtos a serem entregues são MDT e Ortomosaico, no mínimo.
A54: 7. As análises de água serão medidas por unidade quando realizados todos o parâmetros previstos na CONAMA 357 de 2005 (Água Doce - Classe II), em caso de realização de parâmetros parciais será medido o valor proporcional à quantidade total de parâmetros.

Sheet FSUP-IV Mobiliz Desmob
A3: MOBILIZAÇÃO E DESMOBILIZAÇÃO | M3: CODIGO:
M4: FSUP-IV
A5: NOME DA CONSULTORA:
A7: PROJETO: | C7: OBJETO: | M7: EDITAL:
A8: Meio Ambiente | C8: =FSUP!E8 -> Serviços Especializados de Assessoria Ambiental
A9: DISCRIMINAÇÃO | D9: SÍMB. | E9: UNID | F9: QTD. | G9: MOBILIZAÇÃO | K9: DESMOBILIZAÇÃO
G10: CUSTO | I10: PREÇO | K10: CUSTO | M10: PREÇO
G11: UNITÁRIO | H11: TOTAL | I11: UNITÁRIO | J11: TOTAL | K11: UNITÁRIO | L11: TOTAL | M11: UNITÁRIO | N11: TOTAL
A12: 1. DESLOCAMENTO DA EQUIPE
A13: 1.1 Passagens aéreas
A14: a) Coordenador | D14: P0 | E14: unid. | F14: 1 | G14: ='FSUP-II VIAGENS'!G13 -> 0 | H14: =ROUND(F14*G14,2) -> 0 | I14: =((1+0.1)*(1+'FSUP-VI Det. Desp Fiscais'!$G$29%)*G14) -> 0 | J14: =ROUND(F14*I14,2) -> 0
D15: P0 | E15: unid. | F15: 1 | K15: =G14 -> 0 | L15: =H14 -> 0 | M15: =I14 -> 0 | N15: =J14 -> 0
A24: 1.2 Diárias
A25: a) Coordenador | D25: P0 | E25: unid. | F25: 1 | H25: ='FSUP-II VIAGENS'!L13 -> 0 | I25: =((1+0.1)*(1+'FSUP-VI Det. Desp Fiscais'!$G$29%)*G25) -> 0 | J25: =ROUND(F25*I25,2) -> 0
A41: TOTAIS DE CUSTOS E DE PREÇOS DE MOBILIZAÇÃO/DESMOBILIZAÇÃO | H41: =SUM(H12:H40) -> 0 | J41: =SUM(J12:J40) -> 0 | L41: =SUM(L12:L40) -> 0 | N41: =SUM(N12:N40) -> 0
A42: NOME DO INFORMANTE: | G42: QUALIFICAÇÃO:
A44: ASSINATURA: | L44: DATA:
A46: OBS: 1 - Custo do item sem lucro e sem despesas fiscais. Os totais detes deverão ser exportados para o item correspondente no FSUP
A47: 2 - Preço = custo + lucro + despesas fiscais e será calculado com a seguinte fórmula: custo*(1+0,1)*(1+0,1396). O preço será utilizado para fins de faturamento

Sheet FSUP-V Det. custos Adm.
A3: DETALHAMENTO DOS CUSTOS DE ADMINISTRAÇÃO | G3: CODIGO:
G4: FSUP-V
A5: NOME DA CONSULTORA:
A7: PROJETO: | C7: OBJETO: | G7: EDITAL:
A8: Meio Ambiente | C8: =FSUP!E8 -> Serviços Especializados de Assessoria Ambiental
A9: SEQ. | B9: DISCRIMINAÇÃO | F9: VALORES
F10: % | G10: R$
A11: 1 | B11: Custos da equipe da administração central da empresa consultora(diretoria, pessoal técnico de apoio e pessoal administrativo não diretamente vinculado à prestação dos serviços) | F11: 3 | G11: =ROUND(F11/$F$38*FSUP!N$34,2) -> 0
A12: 2 | B12: Outras despesas que afetam o custo de produção como treinamento, biblioteca, programa de qualidade, auditoria interna e externa | F12: 3 | G12: =ROUND(F12/$F$38*FSUP!N$34,2) -> 0
A13: 3 | B13: Despesas com aluguéis, comunicação, manutenção e transporte não diretamente relacionados com o custo direto dos serviços | F13: 2 | G13: =ROUND(F13/$F$38*FSUP!N$34,2) -> 0
B38: TOTAIS DO CUSTO DE ADMINISTRAÇÃO | F38: =SUM(F11:F22) -> 8 | G38: =SUM(G11:G37) -> 0
A40: NOME DO INFORMANTE: | D40: QUALIFICAÇÃO:
A41: ASSINATURA: | F41: DATA:
A42: OBSERVAÇAO:
A43: 1 - RELACIONAR OS CUSTOS DE ADMINISTRAÇÃO COM RESPECTIVOS PERCENTUAIS INCIDENTES NA MÃO -DE-OBRA DOS
A44: SERVIÇOS

Sheet FSUP-VI Det. Desp Fiscais
A3: DETALHAMENTO DAS DESPESAS FISCAIS | H3: CODIGO:
H4: FSUP-VI
A5: NOME DA CONSULTORA:
A7: PROJETO: | C7: OBJETO: | H7: EDITAL:
A8: Meio Ambiente | C8: =FSUP!E8 -> Serviços Especializados de Assessoria Ambiental
A9: DISCRIMINAÇÃO 1 | F9: VALORES
F10: DF (%) 2 | G10: DF' (%) 3 | H10: R$
A12: 1 - ISS | F12: 2.5 | G12: =(1/(1-$F$29/100))*F12 -> 2.83286119 | H12: =ROUND(G12/G$29*FSUP!N$36,2) -> 0
A13: 2 - PIS | F13: 1.65 | G13: =(1/(1-$F$29/100))*F13 -> 1.869688385 | H13: =ROUND(G13/G$29*FSUP!N$36,2) -> 0
A14: 3 - COFINS | F14: 7.6 | G14: =(1/(1-$F$29/100))*F14 -> 8.611898017 | H14: =ROUND(G14/G$29*FSUP!N$36,2) -> 0
A29: TOTAIS DE DESPESAS FISCAIS | F29: =SUM(F12:F28) -> 11.75 | G29: =ROUND(SUM(G12:G14),2) -> 13.31 | H29: =SUM(H12:H28) -> 0
A30: NOME DO INFORMANTE: | F30: QUALIFICAÇÃO:
A32: ASSINATURA: | G32: DATA:
A34: Observação:
A35: 1 - DISCRIMINAR OS TRIBUTOS QUE INCIDEM SOBRE OS CUSTOS DA PRESTAÇÃO DOS SERVIÇOS
A36: =CONCATENATE("2 - DF = INDICAR OS % DE CADA TRIBUTO E A SOMA DOS MESMOS (ISS ",F12,"% + PIS 1,65% + COFINS 7,60% = ",F29,"%). ") -> 2 - DF = INDICAR OS % DE CADA TRIBUTO E A SOMA DOS MESMOS (ISS 2,5% + PIS 1,65% + COFINS 7,60% = 11,75%).
A37: OBS.: Tendo em vista que o contrato será desenvolvido em localidades diversas, foi adotada a alíquota de 5% de ISS,
A38: usual em muitos municípios.
A39: 3 - AS DESPESAS FISCAIS (DF) INCIDEM SOBRE O TOTAL DA FATURA E NÃO SOBRE OS CUSTOS INCORRIDOS,
A40: DEVENDO SER CALCULADO O DF' APLICANDO-SE A SEGUINTE FÓRMULA:
A41: DF' = { [ 1 / ( 1 - DF) ] - 1 } x 100
A42: =CONCATENATE("DF' = { [ 1 / ( 1 - (",F29,"%) ] - 1 } x 100)") -> DF' = { [ 1 / ( 1 - (11,75%) ] - 1 } x 100)
A43: =CONCATENATE("DF' = (",G29,"% . APLICAR O % ENCONTRADO NA LINHA H DO FSUP PARA CALCULAR AS DESPESAS FISCAIS)") -> DF' = (13,31% . APLICAR O % ENCONTRADO NA LINHA H DO FSUP PARA CALCULAR AS DESPESAS FISCAIS)
A44: O TOTAL CALCULADO NA LINHA "H" DO PFSUP SERÁ IMPORTADO PARA COMPOR ESTE DETALHAMENTO.
A45: O TOTAL CALCULADO NA LINHA "H" DO PFSUP SERÁ IMPORTADO PARA COMPOR ESTE DETALHAMENTO.

Sheet FSUP-VII Det. Enc. Sociais
A3: DETALHAMENTO DOS ENCARGOS SOCIAIS | G3: CODIGO:
G4: FSUP-VII
A5: NOME DA CONSULTORA:
A7: PROJETO: | C7: OBJETO: | G7: EDITAL:
A8: Meio Ambiente | C8: =FSUP!E8 -> Serviços Especializados de Assessoria Ambiental
A9: DISCRIMINAÇÃO | F9: VALORES
F10: % | G10: R$
A11: A | B11: ENCARGOS SOCIAIS BÁSICOS
A12: A1 | B12: Seconci | F12: 0.01 | G12: =ROUND(F12*'FSUP-I EQUIPE TÉCNICA'!L$47,2) -> 0
A13: A2 | B13: INSS | F13: 0.2 | G13: =ROUND(F13*'FSUP-I EQUIPE TÉCNICA'!L$47,2) -> 0
A14: A3 | B14: FGTS | F14: 0.08 | G14: =ROUND(F14*'FSUP-I EQUIPE TÉCNICA'!L$47,2) -> 0
A15: A4 | B15: Incra | F15: 0.002 | G15: =ROUND(F15*'FSUP-I EQUIPE TÉCNICA'!L$47,2) -> 0
A16: A5 | B16: Salário Educação | F16: 0.025 | G16: =ROUND(F16*'FSUP-I EQUIPE TÉCNICA'!L$47,2) -> 0
A17: A6 | B17: Sebrae | F17: 0.006 | G17: =ROUND(F17*'FSUP-I EQUIPE TÉCNICA'!L$47,2) -> 0
A18: A7 | B18: Seguro contra acidente | F18: 0.03 | G18: =ROUND(F18*'FSUP-I EQUIPE TÉCNICA'!L$47,2) -> 0
A19: A8 | B19: Senai | F19: 0.01 | G19: =ROUND(F19*'FSUP-I EQUIPE TÉCNICA'!L$47,2) -> 0
A20: A9 | B20: Sesi | F20: 0.015 | G20: =ROUND(F20*'FSUP-I EQUIPE TÉCNICA'!L$47,2) -> 0
A21: SUBTOTAL DE "A" | F21: =ROUND(SUM(F12:F20),4) -> 0.378 | G21: =ROUND(SUM(G12:G20),2) -> 0
A23: B | B23: ENCARGOS SOCIAIS QUE RECEBEM INCIDÊNCIA DE "A"
A24: B1 | B24: Repouso Semanal Remunerado | F24: 0 | G24: =ROUND(F24*'FSUP-I EQUIPE TÉCNICA'!L$47,2) -> 0
A25: B2 | B25: Feriados | F25: 0 | G25: =ROUND(F25*'FSUP-I EQUIPE TÉCNICA'!L$47,2) -> 0
A26: B3 | B26: Auxílio - Enfermidade | F26: 0.0066 | G26: =ROUND(F26*'FSUP-I EQUIPE TÉCNICA'!L$47,2) -> 0
A27: B4 | B27: 13º Salário | F27: 0.0833 | G27: =ROUND(F27*'FSUP-I EQUIPE TÉCNICA'!L$47,2) -> 0
A28: B5 | B28: Licença Paternidade | F28: 0.0005 | G28: =ROUND(F28*'FSUP-I EQUIPE TÉCNICA'!L$47,2) -> 0
A29: B6 | B29: faltas Justificadas | F29: 0.0056 | G29: =ROUND(F29*'FSUP-I EQUIPE TÉCNICA'!L$47,2) -> 0
A30: B7 | B30: Dias de Chuvas | F30: 0 | G30: =ROUND(F30*'FSUP-I EQUIPE TÉCNICA'!L$47,2) -> 0
A31: B8 | B31: Auxílio Acidente de Trabalho | F31: 0.0008 | G31: =ROUND(F31*'FSUP-I EQUIPE TÉCNICA'!L$47,2) -> 0
A32: B9 | B32: Férias Gozadas | F32: 0.0602 | G32: =ROUND(F32*'FSUP-I EQUIPE TÉCNICA'!L$47,2) -> 0
A33: B10 | B33: Salário Maternidade | F33: 0.0003 | G33: =ROUND(F33*'FSUP-I EQUIPE TÉCNICA'!L$47,2) -> 0
A34: SUBTOTAL DE "B" | F34: =ROUND(SUM(F24:F33),4) -> 0.1573 | G34: =ROUND(SUM(G24:G33),2) -> 0
A36: C | B36: ENCARGOS SOCIAIS QUE NÃO RECEBEM INCIDÊNCIA DE "A"
A37: C1 | B37: Depósito por despedida sem justa causa | F37: 0.0261 | G37: =ROUND(F37*'FSUP-I EQUIPE TÉCNICA'!L$47,2) -> 0
A38: C2 | B38: Férias | F38: 0.0411 | G38: =ROUND(F38*'FSUP-I EQUIPE TÉCNICA'!L$47,2) -> 0
A39: C3 | B39: Indenização Adicional | F39: 0.0027 | G39: =ROUND(F39*'FSUP-I EQUIPE TÉCNICA'!L$47,2) -> 0
A40: C4 | B40: Aviso prévio Trabalhado | F40: 0.0008 | G40: =ROUND(F40*'FSUP-I EQUIPE TÉCNICA'!L$47,2) -> 0
A41: C5 | B41: Aviso prévio Indenizado | F41: 0.0324 | G41: =ROUND(F41*'FSUP-I EQUIPE TÉCNICA'!L$47,2) -> 0
A42: SUBTOTAL DE "C" | F42: =ROUND(SUM(F37:F41),4) -> 0.1031 | G42: =ROUND(SUM(G37:G41),2) -> 0
A44: D | B44: REINCIDÊNCIAS
A45: D1 | B45: Reincidência de "A" sobre "B" | F45: 0.0595 | G45: =ROUND(F45*'FSUP-I EQUIPE TÉCNICA'!L$47,2) -> 0
A46: D2 | B46: Reincidência de "A" sobre aviso prévio | F46: 0.0029 | G46: =ROUND(F46*'FSUP-I EQUIPE TÉCNICA'!L$47,2) -> 0
A47: SUBTOTAL DE "D" | F47: =SUM(F45:F46) -> 0.0624 | G47: =ROUND(SUM(G45:G46),2) -> 0
A49: TOTAIS DE ENCARGOS SOCIAIS | F49: =ROUND(F21+F34+F42+F47,4) -> 0.7008 | G49: =ROUND(G21+G34+G42+G47,2) -> 0
A50: NOME DO INFORMANTE: | D50: QUALIFICAÇÃO:
A52: ASSINATURA: | F52: DATA:
A54: Observação:
A55: 1 - DISCRIMINAR OS ENCARGOS SOCIAIS COM SEUS RESPECTIVOS PERCENTUAS TOTALIZANDO OS MESMOS.
A56: 2 - O % TOTAL SERÁ APLICADO PARA CÁLCULAR OS E. SOCIAIS INCIDENTES NA MÃO-DE-OBRA COM VÍNCULO, LINHA "B1" DO FSUP
A58: 3 - Encargos sociais - SINAPI DF
